[Event "HUN-chT Youth-Children 2018"]
[Site "Zalakaros"]
[Date "2018.07.27"]
[Round "4"]
[White "Kocsmar, Akos"]
[Black "Kovacs, Kristof"]
[Result "1-0"]
[ECO "A25"]
[WhiteElo "1721"]
[BlackElo "1351"]
[Annotator "NA"]
[PlyCount "58"]
[EventDate "2018.07.26"]
[EventType "team-tourn"]
[EventCountry "HUN"]
[SourceTitle "playchess.com"]
[Source "ChessBase"]
[SourceQuality "1"]
[TimeControl "5400+30"]

1. c4 {[%emt 0:00:00]} e5 {[%emt 0:00:13]} 2. Nc3 {[%emt 0:00:00]} Nc6 {[%emt 0:00:16]} 3. g3 {[%emt 0:00:32]} g6 {[%emt 0:00:53]} 4. Bg2 {[%emt 0:01:34]} Bg7 {[%emt 0:00:22]} 5. e3 {[%emt 0:00:35]} d6 {[%emt 0:00:46]} 6. Nge2 {[%emt 0:00:25]} Nge7 {[%emt 0:00:13]} 7. O-O {[%emt 0:00:21]} O-O {[%emt 0:00:09]} 8. d4 {[%emt 0:00:12]} f5 {[%emt 0:00:27]} 9. d5 {[%emt 0:00:39]} Nb8 {[%emt 0:00:12]} 10. e4 {[%emt 0:00:22]} Nd7 {[%emt 0:01:05]} 11. f4 {[%emt 0:01:01]} Nf6 {[%emt 0:01:03]} 12. fxe5 {[%emt 0:00:19]} dxe5 {[%emt 0:00:23]} 13. Rb1 {[%emt 0:01:21]} a5 {[%emt 0:00:26]} 14. Bd2 {[%emt 0:03:42]} b6 {[%emt 0:02:53]} 15. Qb3 {[%emt 0:00:55]} Bd7 {[%emt 0:01:09]} 16. a4 {[%emt 0:00:48]} Qc8 {[%emt 0:05:02]} 17. c5 {[%emt 0:01:42]} bxc5 {[%emt 0:01:01]} 18. Be3 {[%emt 0:00:26]} Kh8 {[%emt 0:01:11]} 19. Bxc5 {[%emt 0:00:09]} Qd8 {[%emt 0:00:41]} 20. Rbd1 {[%emt 0:02:23]} g5 {[%emt 0:02:28]} 21. exf5 {[%emt 0:00:10]} Bxf5 {[%emt 0:00:48]} 22. Bxe7 {[%emt 0:00:09]} Qxe7 {[%emt 0:00:33]} 23. Rxf5 {[%emt 0:00:05]} Qc5+ {[%emt 0:00:59]} 24. Kh1 {[%emt 0:00:24]} Ng4 {[%emt 0:00:24]} 25. Ne4 {[%emt 0:01:31]} Qa7 {[%emt 0:00:40]} 26. Rdf1 {[%emt 0:00:45]} Rfb8 {[%emt 0:00:45]} 27. Qd3 {[%emt 0:01:11]} Ne3 {[%emt 0:00:17]} 28. Nxg5 {[%emt 0:00:10]} Qd4 {[%emt 0:03:01]} 29. Rf8+ {[%emt 0:00:08]} Bxf8 1-0

[Event "HUN-chT Youth-Children 2018"]
[Site "Zalakaros"]
[Date "2018.07.27"]
[Round "4"]
[White "Turcsanyi, Vince Gergo"]
[Black "Megyaszai, Balazs"]
[Result "1-0"]
[ECO "B53"]
[WhiteElo "1639"]
[BlackElo "1710"]
[Annotator "NA"]
[PlyCount "104"]
[EventDate "2018.07.26"]
[EventType "team-tourn"]
[EventCountry "HUN"]
[SourceTitle "playchess.com"]
[Source "ChessBase"]
[SourceQuality "1"]
[TimeControl "5400+30"]

1. e4 {[%emt 0:00:00]} c5 {[%emt 0:00:30]} 2. Nf3 {[%emt 0:00:00]} d6 {[%emt 0:00:48]} 3. d4 {[%emt 0:00:00]} cxd4 {[%emt 0:00:53]} 4. Qxd4 {[%emt 0:00:14]} Nc6 {[%emt 0:01:54]} 5. Bb5 {[%emt 0:00:11]} Bd7 {[%emt 0:00:40]} 6. Bxc6 {[%emt 0:00:06]} bxc6 {[%emt 0:02:33]} 7. Nc3 {[%emt 0:01:01]} Nf6 {[%emt 0:01:54]} 8. Bg5 {[%emt 0:00:52]} h6 {[%emt 0:05:51]} 9. Bxf6 {[%emt 0:03:02]} exf6 {[%emt 0:01:17]} 10. h3 {[%emt 0:01:25]} Be7 {[%emt 0:00:36]} 11. O-O-O {[%emt 0:04:11]} Qb6 {[%emt 0:04:34]} 12. Qxb6 {[%emt 0:02:35]} axb6 {[%emt 0:00:16]} 13. Rhe1 {[%emt 0:00:20]} O-O-O {[%emt 0:03:27]} 14. Nd4 {[%emt 0:04:03]} g6 {[%emt 0:03:14]} 15. f4 {[%emt 0:06:50]} Rhe8 {[%emt 0:01:20]} 16. Nb1 {[%emt 0:09:51]} Kb7 {[%emt 0:03:48]} 17. Nd2 {[%emt 0:02:33]} c5 {[%emt 0:04:29]} 18. N4b3 {[%emt 0:00:58]} Be6 {[%emt 0:03:30]} 19. g4 {[%emt 0:03:49]} Bf8 {[%emt 0:06:19]} 20. f5 {[%emt 0:04:12]} Bc8 {[%emt 0:01:28]} 21. Nc4 {[%emt 0:02:29]} b5 {[%emt 0:03:42]} 22. Ne3 {[%emt 0:05:36]} Kb8 {[%emt 0:08:38]} 23. Nd5 {[%emt 0:01:15]} Bg7 {[%emt 0:01:24]} 24. Na5 {[%emt 0:07:27]} Bb7 {[%emt 0:01:37]} 25. Nc3 {[%emt 0:00:52]} b4 {[%emt 0:05:56]} 26. Nb5 {[%emt 0:06:20]} Bf8 {[%emt 0:02:44]} 27. Nc4 {[%emt 0:00:32]} Rxe4 {[%emt 0:06:12]} 28. Rxe4 {[%emt 0:02:15]} Bxe4 {[%emt 0:00:51]} 29. Nbxd6 {[%emt 0:01:03]} Bxd6 {[%emt 0:01:44]} 30. Nxd6 {[%emt 0:00:57]} Bf3 {[%emt 0:05:22]} 31. Rd3 {[%emt 0:02:43]} Bg2 {[%emt 0:02:28]} 32. Nxf7 {[%emt 0:00:59]} Rxd3 {[%emt 0:01:10]} 33. cxd3 {[%emt 0:00:01]} gxf5 {[%emt 0:00:40]} 34. gxf5 {[%emt 0:00:16]} h5 {[%emt 0:05:41]} 35. h4 {[%emt 0:00:38]} Bd5 {[%emt 0:00:26]} 36. Nd6 {[%emt 0:00:24]} Bxa2 {[%emt 0:01:23]} 37. Ne4 {[%emt 0:00:46]} c4 {[%emt 0:01:00]} 38. Nxf6 {[%emt 0:00:50]} cxd3 {[%emt 0:00:24]} 39. Nxh5 {[%emt 0:00:06]} Kc7 {[%emt 0:00:44]} 40. Nf4 {[%emt 0:00:56]} Bg8 {[%emt 0:01:14]} 41. h5 {[%emt 0:03:57]} Kd6 {[%emt 0:00:35]} 42. Nxd3 {[%emt 0:00:49]} Bh7 {[%emt 0:00:44]} 43. Nxb4 {[%emt 0:01:07]} Bxf5 {[%emt 0:00:06]} 44. Nc2 {[%emt 0:00:23]} Ke5 {[%emt 0:00:58]} 45. Ne3 {[%emt 0:02:46]} Bd7 {[%emt 0:00:23]} 46. Nc4+ {[%emt 0:01:04]} Kf5 47. h6 {[%emt 0:00:16]} Kf6 {[%emt 0:01:17]} 48. b4 {[%emt 0:09:05]} Be6 {[%emt 0:00:26]} 49. Ne3 {[%emt 0:03:44]} Kg6 {[%emt 0:00:50]} 50. b5 {[%emt 0:00:07]} Kxh6 {[%emt 0:00:35]} 51. b6 {[%emt 0:00:05]} Bc8 {[%emt 0:00:06]} 52. Nf5+ {[%emt 0:00:06]} Kg5 {[%emt 0:00:54]} 1-0

[Event "HUN-chT Youth-Children 2018"]
[Site "Zalakaros"]
[Date "2018.07.27"]
[Round "4"]
[White "Foldes, Marton Gabor"]
[Black "Balogh, Judit Dora"]
[Result "1/2-1/2"]
[ECO "B34"]
[WhiteElo "1590"]
[BlackElo "1674"]
[Annotator "NA"]
[PlyCount "42"]
[EventDate "2018.07.26"]
[EventType "team-tourn"]
[EventCountry "HUN"]
[SourceTitle "playchess.com"]
[Source "ChessBase"]
[SourceQuality "1"]
[TimeControl "5400+30"]

1. e4 {[%emt 0:00:00]} c5 {[%emt 0:00:23]} 2. Nf3 {[%emt 0:00:00]} Nc6 {[%emt 0:00:56]} 3. d4 {[%emt 0:00:19]} cxd4 {[%emt 0:00:38]} 4. Nxd4 {[%emt 0:00:22]} Nf6 {[%emt 0:01:29]} 5. Nc3 {[%emt 0:00:55]} e5 {[%emt 0:04:43]} 6. Ndb5 {[%emt 0:00:37]} d6 {[%emt 0:01:24]} 7. Bg5 {[%emt 0:00:52]} a6 {[%emt 0:01:43]} 8. Na3 {[%emt 0:00:51]} Be7 {[%emt 0:02:14]} 9. Bxf6 {[%emt 0:02:59]} Bxf6 {[%emt 0:00:37]} 10. Nd5 {[%emt 0:00:49]} b5 {[%emt 0:06:47]} 11. c4 {[%emt 0:01:27]} b4 {[%emt 0:02:08]} 12. Nc2 {[%emt 0:00:37]} a5 {[%emt 0:02:23]} 13. g3 {[%emt 0:01:16]} O-O {[%emt 0:00:46]} 14. Bg2 {[%emt 0:00:41]} Ba6 {[%emt 0:03:47]} 15. b3 {[%emt 0:02:00]} Re8 {[%emt 0:06:34]} 16. O-O {[%emt 0:02:28]} Bb7 {[%emt 0:03:42]} 17. Qd3 {[%emt 0:05:54]} Be7 {[%emt 0:05:58]} 18. Rad1 {[%emt 0:03:07]} Bf8 {[%emt 0:00:38]} 19. Qf3 {[%emt 0:14:06]} Rb8 {[%emt 0:08:01]} 20. h4 {[%emt 0:08:11]} Bc8 {[%emt 0:03:00]} 21. h5 {[%emt 0:10:06]} Qg5 {[%emt 0:02:25]} 1/2-1/2

[Event "HUN-chT Youth-Children 2018"]
[Site "Zalakaros"]
[Date "2018.07.27"]
[Round "4"]
[White "Bodo, Boglarka"]
[Black "Szalay-Ocsak, Bank"]
[Result "1-0"]
[ECO "B30"]
[WhiteElo "1471"]
[BlackElo "1639"]
[Annotator "NA"]
[PlyCount "69"]
[EventDate "2018.07.26"]
[EventType "team-tourn"]
[EventCountry "HUN"]
[SourceTitle "playchess.com"]
[Source "ChessBase"]
[SourceQuality "1"]
[TimeControl "5400+30"]

1. e4 {[%emt 0:00:00]} c5 {[%emt 0:00:09]} 2. Nf3 {[%emt 0:00:00]} Nc6 {[%emt 0:00:19]} 3. Bb5 {[%emt 0:00:18]} e6 {[%emt 0:00:58]} 4. O-O {[%emt 0:02:12]} Nge7 {[%emt 0:01:38]} 5. c3 {[%emt 0:00:40]} a6 {[%emt 0:06:40]} 6. Ba4 {[%emt 0:01:40]} b5 {[%emt 0:03:01]} 7. Bc2 {[%emt 0:00:13]} Bb7 {[%emt 0:01:01]} 8. d4 {[%emt 0:01:43]} d6 {[%emt 0:02:41]} 9. Be3 {[%emt 0:02:38]} Ng6 {[%emt 0:04:21]} 10. Re1 {[%emt 0:02:43]} Be7 {[%emt 0:06:11]} 11. Nbd2 {[%emt 0:01:53]} O-O {[%emt 0:02:53]} 12. Qe2 {[%emt 0:04:05]} Qc7 {[%emt 0:04:32]} 13. c4 {[%emt 0:04:30]} Rab8 {[%emt 0:16:25]} 14. Bb3 {[%emt 0:04:07]} b4 {[%emt 0:06:47]} 15. Rac1 {[%emt 0:05:58]} e5 {[%emt 0:06:58]} 16. d5 {[%emt 0:02:02]} Nd4 {[%emt 0:00:29]} 17. Bxd4 {[%emt 0:01:40]} exd4 {[%emt 0:01:03]} 18. e5 {[%emt 0:03:33]} dxe5 {[%emt 0:07:09]} 19. Nxe5 {[%emt 0:00:58]} Bd6 {[%emt 0:03:05]} 20. Nef3 {[%emt 0:02:53]} Qd7 {[%emt 0:06:19]} 21. Ne4 {[%emt 0:01:38]} Rfe8 {[%emt 0:01:21]} 22. Qd2 {[%emt 0:01:47]} Rbc8 {[%emt 0:03:58]} 23. Qc2 {[%emt 0:00:54]} Qc7 {[%emt 0:01:48]} 24. Ba4 {[%emt 0:02:25]} Re7 {[%emt 0:00:37]} 25. Nxd6 {[%emt 0:00:23]} Qxd6 {[%emt 0:00:00]} 26. Rxe7 {[%emt 0:00:16]} Qxe7 {[%emt 0:01:10]} 27. Re1 {[%emt 0:00:24]} Qd6 {[%emt 0:00:22]} 28. Qf5 {[%emt 0:01:34]} h6 {[%emt 0:02:08]} 29. Ne5 {[%emt 0:01:48]} Nxe5 {[%emt 0:01:38]} 30. Qxe5 {[%emt 0:01:58]} Qxe5 {[%emt 0:00:06]} 31. Rxe5 {[%emt 0:00:12]} Kf8 {[%emt 0:01:32]} 32. d6 {[%emt 0:02:16]} f6 {[%emt 0:00:59]} 33. Re1 {[%emt 0:00:12]} f5 {[%emt 0:00:52]} 34. d7 {[%emt 0:00:13]} Rd8 {[%emt 0:01:09]} 35. Re8+ {[%emt 0:00:09]} 1-0

[Event "HUN-chT Youth-Children 2018"]
[Site "Zalakaros"]
[Date "2018.07.27"]
[Round "4"]
[White "Kis, Izabella"]
[Black "Lazsadi, Kerka Lilla"]
[Result "0-1"]
[ECO "C45"]
[WhiteElo "1446"]
[BlackElo "1399"]
[Annotator "NA"]
[PlyCount "116"]
[EventDate "2018.07.26"]
[EventType "team-tourn"]
[EventCountry "HUN"]
[SourceTitle "playchess.com"]
[Source "ChessBase"]
[SourceQuality "1"]
[TimeControl "5400+30"]

1. e4 {[%emt 0:00:00]} e5 {[%emt 0:00:14]} 2. Nf3 {[%emt 0:00:00]} Nc6 {[%emt 0:00:18]} 3. d4 {[%emt 0:00:00]} exd4 {[%emt 0:00:32]} 4. Nxd4 {[%emt 0:00:46]} Bc5 {[%emt 0:00:44]} 5. Be3 {[%emt 0:01:07]} Qf6 {[%emt 0:00:53]} 6. c3 {[%emt 0:01:10]} Nge7 {[%emt 0:00:33]} 7. b4 {[%emt 0:12:38]} Bb6 {[%emt 0:00:54]} 8. Bc4 {[%emt 0:02:42]} Qg6 {[%emt 0:03:19]} 9. O-O {[%emt 0:06:53]} Qxe4 {[%emt 0:03:32]} 10. Nd2 {[%emt 0:03:01]} Qg6 {[%emt 0:01:48]} 11. N2f3 {[%emt 0:02:40]} O-O {[%emt 0:02:17]} 12. Re1 {[%emt 0:03:16]} d6 {[%emt 0:02:41]} 13. Kh1 {[%emt 0:02:59]} Ne5 {[%emt 0:01:31]} 14. Bb3 {[%emt 0:04:52]} Bg4 {[%emt 0:01:33]} 15. a4 {[%emt 0:14:26]} Bxd4 {[%emt 0:01:00]} 16. Bxd4 {[%emt 0:02:07]} N7c6 {[%emt 0:02:26]} 17. Bd5 {[%emt 0:05:35]} Rfe8 {[%emt 0:01:34]} 18. h3 {[%emt 0:05:03]} Bxf3 {[%emt 0:01:18]} 19. Bxf3 {[%emt 0:00:25]} Re7 {[%emt 0:03:13]} 20. Bxc6 {[%emt 0:07:14]} Nxc6 {[%emt 0:00:59]} 21. Rxe7 {[%emt 0:00:46]} Nxe7 {[%emt 0:00:18]} 22. Qf3 {[%emt 0:01:06]} c6 {[%emt 0:01:28]} 23. Re1 {[%emt 0:01:45]} Nd5 {[%emt 0:02:14]} 24. Bxa7 {[%emt 0:05:22]} h6 {[%emt 0:02:29]} 25. Bd4 {[%emt 0:02:11]} Rxa4 {[%emt 0:00:51]} 26. Re8+ {[%emt 0:00:35]} Kh7 {[%emt 0:00:15]} 27. Rb8 {[%emt 0:00:33]} b5 {[%emt 0:01:03]} 28. Rc8 {[%emt 0:00:37]} Ra6 {[%emt 0:00:47]} 29. Qe2 {[%emt 0:01:03]} Nf4 {[%emt 0:00:58]} 30. Qf3 {[%emt 0:00:25]} Nd5 {[%emt 0:01:36]} 31. Qe2 {[%emt 0:00:35]} Nf4 {[%emt 0:02:00]} 32. Qf3 {[%emt 0:00:21]} Qg5 {[%emt 0:04:02]} 33. Be3 {[%emt 0:00:51]} Qf5 {[%emt 0:01:07]} 34. Rxc6 {[%emt 0:01:27]} Rxc6 {[%emt 0:01:57]} 35. Qxc6 {[%emt 0:00:10]} Ne2 {[%emt 0:00:20]} 36. f3 {[%emt 0:01:25]} Qe5 {[%emt 0:01:46]} 37. Qe4+ {[%emt 0:01:24]} Qxe4 {[%emt 0:00:27]} 38. fxe4 {[%emt 0:00:08]} Nxc3 {[%emt 0:00:12]} 39. g4 {[%emt 0:00:56]} Nxe4 {[%emt 0:00:29]} 40. Kg2 {[%emt 0:00:17]} Kg6 {[%emt 0:00:45]} 41. Kf3 {[%emt 0:00:19]} d5 {[%emt 0:00:47]} 42. Kf4 {[%emt 0:00:37]} f6 {[%emt 0:00:42]} 43. Bd4 {[%emt 0:00:45]} Kf7 {[%emt 0:00:40]} 44. Bb6 {[%emt 0:01:56]} g5+ {[%emt 0:00:44]} 45. Kf3 {[%emt 0:00:14]} Ke6 {[%emt 0:01:05]} 46. Bd4 {[%emt 0:00:42]} Nd2+ {[%emt 0:01:23]} 47. Ke3 {[%emt 0:00:36]} Nc4+ {[%emt 0:00:30]} 48. Kf3 {[%emt 0:01:24]} Nd6 {[%emt 0:01:37]} 49. Bb2 {[%emt 0:02:26]} Nb7 {[%emt 0:00:36]} 50. Bd4 {[%emt 0:00:52]} Nd8 {[%emt 0:00:23]} 51. Bc5 {[%emt 0:00:27]} Nc6 {[%emt 0:00:33]} 52. Ke3 {[%emt 0:00:39]} Ke5 {[%emt 0:00:29]} 53. Kf3 {[%emt 0:00:31]} d4 {[%emt 0:00:49]} 54. Bf8 {[%emt 0:00:44]} Kd5 {[%emt 0:00:28]} 55. Bg7 {[%emt 0:00:43]} Ke5 {[%emt 0:00:53]} 56. Bf8 {[%emt 0:00:53]} Nd8 {[%emt 0:03:21]} 57. Be7 {[%emt 0:00:49]} Ne6 {[%emt 0:00:32]} 58. Ke2 {[%emt 0:01:03]} Nf4+ {[%emt 0:00:19]} 0-1

[Event "HUN-chT Youth-Children 2018"]
[Site "Zalakaros"]
[Date "2018.07.27"]
[Round "4"]
[White "Gergely, Daniel"]
[Black "Toth, Csongor"]
[Result "1-0"]
[ECO "D00"]
[WhiteElo "1367"]
[BlackElo "1326"]
[Annotator "NA"]
[PlyCount "131"]
[EventDate "2018.07.26"]
[EventType "team-tourn"]
[EventCountry "HUN"]
[SourceTitle "playchess.com"]
[Source "ChessBase"]
[SourceQuality "1"]
[TimeControl "5400+30"]

1. d4 {[%emt 0:00:00]} d5 {[%emt 0:00:08]} 2. Bf4 {[%emt 0:00:07]} e6 {[%emt 0:01:01]} 3. e3 {[%emt 0:00:46]} Nf6 {[%emt 0:03:32]} 4. Nf3 {[%emt 0:01:33]} Bd6 {[%emt 0:04:07]} 5. Bg3 {[%emt 0:02:38]} Bxg3 {[%emt 0:03:53]} 6. hxg3 {[%emt 0:00:18]} h6 {[%emt 0:01:01]} 7. Nbd2 {[%emt 0:00:58]} Bd7 {[%emt 0:01:12]} 8. c3 {[%emt 0:01:33]} Nc6 {[%emt 0:01:11]} 9. Be2 {[%emt 0:02:42]} Qe7 {[%emt 0:03:09]} 10. O-O {[%emt 0:03:39]} O-O {[%emt 0:00:12]} 11. Qc2 {[%emt 0:03:42]} Rfe8 {[%emt 0:05:09]} 12. Rad1 {[%emt 0:02:09]} Rad8 {[%emt 0:00:45]} 13. Rfe1 {[%emt 0:02:16]} e5 {[%emt 0:05:58]} 14. dxe5 {[%emt 0:06:08]} Nxe5 {[%emt 0:00:21]} 15. Nd4 {[%emt 0:01:54]} c5 {[%emt 0:04:56]} 16. N4f3 {[%emt 0:02:57]} Bc6 {[%emt 0:00:46]} 17. Nxe5 {[%emt 0:03:52]} Qxe5 {[%emt 0:00:23]} 18. Nf3 {[%emt 0:00:11]} Qe6 {[%emt 0:01:55]} 19. Bd3 {[%emt 0:01:14]} Qe7 {[%emt 0:03:47]} 20. Bf5 {[%emt 0:02:59]} Bd7 {[%emt 0:11:23]} 21. Bd3 {[%emt 0:05:59]} Bg4 {[%emt 0:03:13]} 22. Be2 {[%emt 0:01:33]} Qc7 {[%emt 0:08:59]} 23. Rd2 {[%emt 0:06:00]} a6 {[%emt 0:03:46]} 24. Red1 {[%emt 0:02:25]} Rd7 {[%emt 0:00:58]} 25. c4 {[%emt 0:08:57]} Red8 {[%emt 0:04:03]} 26. cxd5 {[%emt 0:01:10]} Rxd5 {[%emt 0:01:27]} 27. Rxd5 {[%emt 0:00:47]} Rxd5 {[%emt 0:00:12]} 28. Rxd5 {[%emt 0:00:56]} Nxd5 {[%emt 0:00:16]} 29. Qc4 {[%emt 0:03:05]} Be6 {[%emt 0:00:45]} 30. Qe4 {[%emt 0:01:30]} Qb6 31. Qe5 {[%emt 0:03:34]} Qc7 {[%emt 0:05:17]} 32. Qxc7 {[%emt 0:03:07]} Nxc7 {[%emt 0:00:06]} 33. a3 {[%emt 0:00:18]} Bg4 {[%emt 0:00:18]} 34. Kf1 {[%emt 0:00:24]} Bxf3 {[%emt 0:00:06]} 35. Bxf3 {[%emt 0:00:16]} b6 {[%emt 0:00:08]} 36. Ke2 {[%emt 0:00:18]} Kf8 {[%emt 0:00:09]} 37. Kd3 {[%emt 0:00:20]} Ke7 {[%emt 0:00:10]} 38. b3 {[%emt 0:00:45]} Kd6 {[%emt 0:00:54]} 39. Be4 {[%emt 0:00:27]} b5 {[%emt 0:01:27]} 40. f4 {[%emt 0:01:09]} Ne8 {[%emt 0:01:09]} 41. Bb7 {[%emt 0:00:24]} a5 {[%emt 0:00:49]} 42. g4 {[%emt 0:00:53]} g5 {[%emt 0:01:03]} 43. Bf3 {[%emt 0:00:51]} Ng7 {[%emt 0:02:17]} 44. Kc3 {[%emt 0:01:15]} gxf4 {[%emt 0:05:06]} 45. exf4 {[%emt 0:00:25]} Ne6 {[%emt 0:01:12]} 46. f5 {[%emt 0:01:56]} Nd4 {[%emt 0:00:40]} 47. Bd1 {[%emt 0:01:41]} Ke5 {[%emt 0:02:59]} 48. Kd3 {[%emt 0:01:58]} Nxb3 {[%emt 0:01:17]} 49. Bxb3 {[%emt 0:00:16]} c4+ {[%emt 0:00:05]} 50. Bxc4 {[%emt 0:00:23]} bxc4+ {[%emt 0:02:29]} 51. Kxc4 {[%emt 0:00:09]} Kf4 {[%emt 0:01:19]} 52. Kb5 {[%emt 0:00:10]} a4 {[%emt 0:00:05]} 53. Kxa4 {[%emt 0:00:26]} Kxg4 {[%emt 0:00:07]} 54. Kb4 {[%emt 0:00:10]} Kxf5 {[%emt 0:00:05]} 55. a4 {[%emt 0:00:15]} Ke6 {[%emt 0:00:04]} 56. Kc5 {[%emt 0:00:19]} Kd7 {[%emt 0:00:22]} 57. Kd5 {[%emt 0:00:32]} Kc7 {[%emt 0:00:25]} 58. Ke5 {[%emt 0:00:29]} Kb6 {[%emt 0:00:06]} 59. Kf6 {[%emt 0:00:16]} Ka5 {[%emt 0:00:04]} 60. Kxf7 {[%emt 0:00:10]} Kxa4 {[%emt 0:00:03]} 61. Kg6 {[%emt 0:00:28]} Kb5 {[%emt 0:00:19]} 62. Kxh6 {[%emt 0:00:09]} Kc6 {[%emt 0:00:04]} 63. g4 {[%emt 0:00:57]} Kd7 {[%emt 0:00:03]} 64. g5 {[%emt 0:00:35]} Ke8 {[%emt 0:00:05]} 65. g6 {[%emt 0:01:04]} Kf8 {[%emt 0:00:02]} 66. Kh7 {[%emt 0:00:14]} 1-0

[Event "HUN-chT Youth-Children 2018"]
[Site "Zalakaros"]
[Date "2018.07.27"]
[Round "4"]
[White "Pogany, Dorka"]
[Black "Szabo, Miklos"]
[Result "0-1"]
[ECO "C50"]
[WhiteElo "1350"]
[BlackElo "1711"]
[Annotator "NA"]
[PlyCount "90"]
[EventDate "2018.07.26"]
[EventType "team-tourn"]
[EventCountry "HUN"]
[SourceTitle "playchess.com"]
[Source "ChessBase"]
[SourceQuality "1"]
[TimeControl "5400+30"]

1. e4 {[%emt 0:00:00]} e5 {[%emt 0:00:04]} 2. Nf3 {[%emt 0:00:00]} Nc6 {[%emt 0:00:05]} 3. Bc4 {[%emt 0:00:22]} Bc5 {[%emt 0:00:04]} 4. Nc3 {[%emt 0:00:38]} Nf6 {[%emt 0:01:37]} 5. d3 {[%emt 0:00:30]} O-O {[%emt 0:00:32]} 6. Be3 {[%emt 0:01:59]} Bb6 {[%emt 0:02:00]} 7. Bg5 {[%emt 0:01:12]} h6 {[%emt 0:01:49]} 8. Bh4 {[%emt 0:00:39]} Ba5 {[%emt 0:02:19]} 9. O-O {[%emt 0:01:44]} Bxc3 {[%emt 0:00:18]} 10. bxc3 {[%emt 0:00:11]} d6 {[%emt 0:00:37]} 11. h3 {[%emt 0:00:28]} Na5 {[%emt 0:01:51]} 12. Bb3 {[%emt 0:01:36]} Nxb3 {[%emt 0:00:12]} 13. cxb3 {[%emt 0:00:58]} g5 {[%emt 0:01:21]} 14. Bg3 {[%emt 0:01:26]} Re8 {[%emt 0:05:31]} 15. Qd2 {[%emt 0:07:46]} Nh5 {[%emt 0:01:24]} 16. Rae1 {[%emt 0:05:04]} f5 {[%emt 0:03:24]} 17. exf5 {[%emt 0:07:21]} Bxf5 {[%emt 0:00:25]} 18. h4 {[%emt 0:01:50]} Nf4 {[%emt 0:05:32]} 19. hxg5 {[%emt 0:33:27]} hxg5 {[%emt 0:04:18]} 20. Bxf4 {[%emt 0:01:35]} gxf4 {[%emt 0:00:27]} 21. d4 {[%emt 0:02:48]} Bg4 {[%emt 0:15:31]} 22. Qd3 {[%emt 0:08:11]} Kg7 {[%emt 0:12:14]} 23. Nh2 {[%emt 0:10:00]} Bd7 {[%emt 0:11:33]} 24. dxe5 {[%emt 0:04:22]} Qh4 {[%emt 0:03:20]} 25. e6 {[%emt 0:02:34]} Rh8 {[%emt 0:08:43]} 26. Qh3 {[%emt 0:00:50]} Qxh3 {[%emt 0:00:18]} 27. gxh3 {[%emt 0:00:10]} Bc6 {[%emt 0:00:33]} 28. f3 {[%emt 0:01:08]} Rxh3 {[%emt 0:00:25]} 29. Re2 {[%emt 0:02:37]} Rah8 {[%emt 0:03:47]} 30. Rff2 {[%emt 0:00:44]} Kf8 {[%emt 0:02:50]} 31. e7+ {[%emt 0:00:32]} Ke8 {[%emt 0:00:00]} 32. c4 {[%emt 0:00:21]} Rg3+ {[%emt 0:01:50]} 33. Rg2 {[%emt 0:00:18]} Bxf3 {[%emt 0:02:12]} 34. Nxf3 {[%emt 0:01:12]} Rxf3 {[%emt 0:00:05]} 35. Rgf2 {[%emt 0:00:45]} Rxf2 {[%emt 0:00:56]} 36. Rxf2 {[%emt 0:00:21]} Rh4 {[%emt 0:00:06]} 37. Re2 {[%emt 0:00:33]} Rh7 {[%emt 0:00:16]} 38. Kf2 {[%emt 0:00:17]} Rh2+ {[%emt 0:01:41]} 39. Kf3 {[%emt 0:00:09]} Rxe2 {[%emt 0:00:06]} 40. Kxe2 {[%emt 0:00:06]} Kxe7 {[%emt 0:00:05]} 41. Kf3 {[%emt 0:00:29]} d5 {[%emt 0:01:02]} 42. Kxf4 {[%emt 0:01:48]} dxc4 {[%emt 0:00:08]} 43. bxc4 {[%emt 0:00:11]} Kd6 {[%emt 0:00:07]} 44. Ke4 {[%emt 0:00:20]} Kc5 {[%emt 0:00:33]} 45. Kd3 {[%emt 0:00:18]} Kb4 {[%emt 0:00:34]} 0-1

[Event "HUN-chT Youth-Children 2018"]
[Site "Zalakaros"]
[Date "2018.07.27"]
[Round "4"]
[White "Szabo, Akos"]
[Black "Markus, Molli Amina"]
[Result "0-1"]
[ECO "D00"]
[WhiteElo "1322"]
[BlackElo "1566"]
[Annotator "NA"]
[PlyCount "56"]
[EventDate "2018.07.26"]
[EventType "team-tourn"]
[EventCountry "HUN"]
[SourceTitle "playchess.com"]
[Source "ChessBase"]
[SourceQuality "1"]
[TimeControl "5400+30"]

1. d4 {[%emt 0:00:00]} d5 {[%emt 0:00:17]} 2. e3 {[%emt 0:00:00]} Nf6 {[%emt 0:00:40]} 3. f4 {[%emt 0:00:02]} e6 {[%emt 0:00:44]} 4. Nf3 {[%emt 0:02:26]} c5 {[%emt 0:00:56]} 5. c3 {[%emt 0:00:42]} Nc6 {[%emt 0:00:49]} 6. Bd3 {[%emt 0:01:38]} b6 {[%emt 0:02:20]} 7. O-O {[%emt 0:00:28]} Bd6 {[%emt 0:00:51]} 8. Nbd2 {[%emt 0:01:12]} Bb7 {[%emt 0:02:32]} 9. Ne5 {[%emt 0:00:29]} Rc8 {[%emt 0:02:12]} 10. Ndf3 {[%emt 0:02:24]} h6 {[%emt 0:05:27]} 11. Bd2 {[%emt 0:02:22]} Rc7 {[%emt 0:03:06]} 12. Rc1 {[%emt 0:01:03]} Qc8 {[%emt 0:02:02]} 13. Rc2 {[%emt 0:07:33]} Ba6 {[%emt 0:01:16]} 14. Be1 {[%emt 0:03:02]} Bxd3 {[%emt 0:04:32]} 15. Nxd3 {[%emt 0:00:35]} Ne4 {[%emt 0:01:11]} 16. Bh4 {[%emt 0:01:27]} Ne7 {[%emt 0:01:53]} 17. Rc1 {[%emt 0:01:30]} Nf5 {[%emt 0:01:02]} 18. Nf2 {[%emt 0:02:14]} Nxe3 {[%emt 0:00:53]} 19. Qe2 {[%emt 0:03:27]} Nxf1 {[%emt 0:00:14]} 20. Rxf1 {[%emt 0:01:16]} Nxf2 {[%emt 0:00:12]} 21. Bxf2 {[%emt 0:01:20]} Bxf4 {[%emt 0:00:18]} 22. g3 {[%emt 0:00:37]} Bd6 {[%emt 0:00:23]} 23. Rd1 {[%emt 0:03:29]} cxd4 {[%emt 0:01:17]} 24. Rxd4 {[%emt 0:00:29]} Bc5 {[%emt 0:01:44]} 25. Rd2 {[%emt 0:04:54]} Bxf2+ {[%emt 0:01:13]} 26. Qxf2 {[%emt 0:01:08]} Qa6 {[%emt 0:00:59]} 27. a3 {[%emt 0:00:40]} Qb5 {[%emt 0:01:49]} 28. Nd4 {[%emt 0:00:36]} Qc5 0-1